Cogmind - Beta 9.4 @@@ ROGUE MODE // 2020.03.07 @ 16:06:11 Player: David Result: Destroyed by Y-45 Defender with Beam Rifle Performance ------------- Evolutions (0) 0 Regions Visited (2) 400 Robots Destroyed (13) 65 Value Destroyed (354) 354 Prototype IDs (0) 0 Alien Tech Used (0) 0 Bonus (0) 0 TOTAL SCORE: 819 Bonus ------- None Cogmind --------- Core Integrity 0/250 Matter 298/300 Energy 150/150 System Corruption 0% Temperature Cool (57) Movement Walking (120) Location -10/Mines Parts ------- > --- POWER (1) -------- Light Angular Momentum Engine > --- PROPULSION (2) --- Carbon-fiber Leg Carbon-fiber Leg > --- UTILITY (2) ------ Small Storage Unit Targeting Computer > --- WEAPON (2) ------- Small Laser Light Assault Rifle > --- INVENTORY (6) ---- ECM Suite Peak State ------------ > --- POWER ------------ Light Angular Momentum Engine > --- PROPULSION ------- Carbon-fiber Leg Carbon-fiber Leg > --- UTILITY ---------- Small Storage Unit Targeting Computer > --- WEAPON ----------- Small Laser Light Assault Rifle > --- INVENTORY -------- ECM Suite [Rating: 15] Favorites ----------- Power Ion Engine Engine Ion Engine Power Core Light Nuclear Core Propulsion Compact Wheel Leg Aluminum Leg Wheel Compact Wheel Utility Small Storage Unit Storage Small Storage Unit Processor Targeting Computer Weapon Light Assault Rifle Energy Gun Small Laser Ballistic Gun Light Assault Rifle Special Weapon Mining Laser Build | -11 -10 -10 ------- Run | Scr Mat Min Slots Evolved . | . . . Power . | . . . Propulsion . | . . . Utility . | . . . Weapon . | . . . Parts Attached 16 | 6 2 8 Power 3 | 1 . 2 Engine 2 | 1 . 1 Core 1 | . . 1 Reactor . | . . . Propulsion 6 | 2 1 3 Treads . | . . . Leg 3 | . . 3 Wheel 3 | 2 1 . Hover . | . . . Flight . | . . . Utility 2 | 1 1 . Device . | . . . Storage 1 | 1 . . Processor 1 | . 1 . Hackware . | . . . Protection . | . . . Artifact . | . . . Weapon 5 | 2 . 3 Energy Gun 1 | . . 1 Energy Cannon . | . . . Ballistic Gun 3 | 2 . 1 Ballistic Cannon . | . . . Launcher . | . . . Special Weapon 1 | . . 1 Impact Weapon . | . . . Slashing Weapon . | . . . Piercing Weapon . | . . . Special Melee Weapon . | . . . Unidentified Prototypes . | . . . Parts Lost 7 | . 1 6 Power 1 | . . 1 Propulsion 3 | . 1 2 Utility . | . . . Weapon 3 | . . 3 Highest Loss Streak 5 | . 1 5 Average Slot Usage (%) 81 | . 94 72 Engine 8 | . 14 4 Core 3 | . . 6 Leg 6 | . . 11 Wheel 12 | . 24 4 Storage 14 | . 14 14 Processor 13 | . 12 14 Energy Gun 6 | . . 11 Ballistic Gun 13 | . 28 4 Special Weapon 1 | . . 2 Naked Turns . | . . . Heaviest Build 15 | 12 12 15 Greatest Support 30 | 26 26 30 Greatest Overweight (x) 1 | . . 1 Average Overweight (x) . | . . . Largest Inventory Capacity 6 | 6 6 6 Average Capacity 5 | 5 6 6 Most Carried 4 | 4 3 3 Average Carried 1 | 1 1 1 Final Capacity 6 | 6 6 6 Final Carried 3 | . 3 1 Class Distribution -------------------- 89% | Mutant 10% | Scavenger-Mutant Dominant Class ---------------- Mutant | -10/Materials Mutant | -10/Mines Resources | -11 -10 -10 ----------- Run | Scr Mat Min Matter Collected 492 | 220 162 110 Remotely . | . . . Salvage Created 354 | . 244 110 Parts 23 | . 17 6 Haulers Intercepted . | . . . Recyclers Shooed . | . . . Parts Field Recycled . | . . . Retrieved Matter . | . . . Parts Self-Destructed . | . . . Prevented . | . . . Kills | -11 -10 -10 ------- Run | Scr Mat Min Combat Hostiles Destroyed 11 | . 5 6 Guns 9 | . 5 4 Cannons 2 | . . 2 Classes Destroyed 5 | . 3 2 Tunneler 1 | . 1 . Operator 1 | . 1 . Swarmer 2 | . . 2 Grunt 8 | . 5 3 Assembled 1 | . . 1 Best Kill Streak 3 | . 3 2 Combat Bots Only 2 | . 2 2 Max Kills in Single Turn 2 | . 2 1 Gunslinging . | . . . Exploded . | . . . Melee . | . . . Uniques/NPCs Destroyed . | . . . Combat | -11 -10 -10 -------- Run | Scr Mat Min Damage Taken 780 | . 282 498 Core 256 | . 68 188 Absorbed by Shields . | . . . Core Remaining (%) 100 | 100 . . Volleys Fired 61 | . 30 31 Largest 2 | . 2 2 Hottest 120 | . 40 120 Shots Fired 99 | . 60 39 Gun 93 | . 60 33 Cannon . | . . . Launcher . | . . . Special 6 | . . 6 Kinetic 71 | . 60 11 Thermal 28 | . . 28 Explosive . | . . . Electromagnetic . | . . . Robot Hit Streak 18 | . 18 7 Robot Miss Streak 3 | . 2 3 Penetration Max . | . . . Secondary Targets 1 | . 1 . Max Gunslinging Chain 1 | . 1 . Shots Hit Robots 68 | . 42 26 Core Hits 27 | . 15 12 Critical Hits 2 | . 2 . Critical Kills . | . . . Critical Parts Destroyed 2 | . 2 . Melee Attacks . | . . . Impact . | . . . Slashing . | . . . Piercing . | . . . Sneak Attacks . | . . . Combat Hostiles . | . . . Follow-up Attacks . | . . . Damage Inflicted 829 | . 484 345 Guns 733 | . 484 249 Cannons . | . . . Explosions . | . . . Melee . | . . . Ramming . | . . . Kinetic 590 | . 484 106 Thermal 239 | . . 239 Explosive . | . . . Electromagnetic . | . . . Impact . | . . . Slashing . | . . . Piercing . | . . . Highest Corruption . | . . . Average Corruption . | . . . Corruption Purged . | . . . Overload Shots . | . . . Overflow Damage . | . . . Projectiles . | . . . Explosions . | . . . Melee . | . . . Knockbacks . | . . . Impact . | . . . Kinetic . | . . . Secondary . | . . . Self-Inflicted Damage . | . . . Shots . | . . . Rammed . | . . . Targets Rammed . | . . . Kicked . | . . . Crushed . | . . . Highest Temperature 70 | . 18 70 Average Temperature 19 | . 8 23 Received Heat Transfer 423 | . 156 267 Siege Activations . | . . . Robots Corrupted . | . . . Combat Hostiles . | . . . Parts Fried . | . . . Impact Corruptions . | . . . Robots Melted . | . . . Combat Hostiles . | . . . Parts Melted . | . . . Heat Transferred 525 | . . 525 Parts Sabotaged . | . . . Parts Stolen . | . . . Parts Stripped . | . . . Power Chain Reactions . | . . . Missiles Intercepted . | . . . Alert | -11 -10 -10 ------- Run | Scr Mat Min Peak Influence 140 | . 140 57 Average Influence 45 | . 75 28 Maximum Alert Level . | . . . Low Security (%) 100 | 100 100 100 Level 1 . | . . . Level 2 . | . . . Level 3 . | . . . Level 4 . | . . . Level 5 . | . . . High Security . | . . . Max Security . | . . . Squads Dispatched 2 | . 2 . Investigation 1 | . 1 . Extermination . | . . . Reinforcement 1 | . 1 . Assault . | . . . Garrison . | . . . Intercept . | . . . Construction Impeded . | . . . Haulers Reinforced . | . . . Stealth | -11 -10 -10 --------- Run | Scr Mat Min Distress Signals . | . . . Communications Jammed . | . . . Distress Signals . | . . . Times Spotted 25 | . 9 16 Peak Tracking Total 6 | . 3 6 Tactical Retreats 3 | . . 3 Traps | -11 -10 -10 ------- Run | Scr Mat Min Traps Triggered 1 | . 1 . Indirectly . | . . . Trap Hack Attempts . | . . . Triggered . | . . . Disarmed . | . . . Reprogrammed . | . . . Reused . | . . . Traps Extracted . | . . . Installed . | . . . Triggered . | . . . Machines | -11 -10 -10 ---------- Run | Scr Mat Min Machines Disabled . | . . . Max in Single Turn . | . . . Machines Sabotaged . | . . . Garrisons Compromised . | . . . Overloaded Fab Kills . | . . . Fab Network Shutdowns . | . . . Hacking | -11 -10 -10 --------- Run | Scr Mat Min Machines Accessed 1 | . 1 . Terminals 1 | . 1 . Fabricators . | . . . Repair Stations . | . . . Recycling Units . | . . . Scanalyzers . | . . . Garrison Access . | . . . Total Hacks 3 | . 3 . Successful 2 | . 2 . Failed 1 | . 1 . Catastrophic . | . . . Database Lockouts . | . . . Manual . | . . . Terminals 3 | . 3 . Fabricators . | . . . Repair Stations . | . . . Recycling Units . | . . . Scanalyzers . | . . . Garrison Access . | . . . Terminal Hacks 2 | . 2 . Branch Access Points 1 | . 1 . Zone Layout 1 | . 1 . Fabricator Hacks . | . . . Repair Station Hacks . | . . . Recycling Unit Hacks . | . . . Scanalyzer . | . . . Garrison Access Hacks . | . . . Unauthorized Hacks . | . . . Terminals . | . . . Fabricators . | . . . Repair Stations . | . . . Recycling Units . | . . . Scanalyzers . | . . . Garrison Access . | . . . Data Cores Recovered . | . . . Used . | . . . Hacking Detections . | . . . Full Trace Events . | . . . Feedback Events . | . . . Feedback Blocked . | . . . Robot Schematics Acquired . | . . . Robots Built . | . . . Matter . | . . . Time . | . . . Total Robot Build Rating . | . . . Part Schematics Acquired . | . . . Parts Built . | . . . Matter . | . . . Time . | . . . Total Part Build Rating . | . . . Parts Repaired . | . . . Time . | . . . Parts Recycled . | . . . Recycled Matter . | . . . Retrieved Matter . | . . . Retrieved Components . | . . . Parts Scanalyzed . | . . . Part Schematics Acquired . | . . . Parts Damaged . | . . . Bothacking | -11 -10 -10 ------------ Run | Scr Mat Min Used RIF Installer . | . . . Robots Hacked . | . . . Non-combat . | . . . Combat . | . . . Robot Hacks Applied . | . . . Relay Couplers Released . | . . . Robots Rewired . | . . . Allies Hacked . | . . . Hacks Repelled . | . . . Allies | -11 -10 -10 -------- Run | Scr Mat Min Total Allies 2 | . . 2 Largest Group 2 | . . 2 Highest-Rated Group 46 | . . 46 Highest-Rated Ally 31 | . . 31 Total Orders . | . . . Ally Attacks 1 | . . 1 Total Damage . | . . . Kills . | . . . Allies Corrupted . | . . . Allies Melted . | . . . Intel | -11 -10 -10 ------- Run | Scr Mat Min Robot Analysis Total . | . . . Derelict Logs Recovered 2 | . . 2 Drone Launches . | . . . Drone Recoveries . | . . . Exploration | -11 -10 -10 ------------- Run | Scr Mat Min Turns Passed 1087 | 35 427 625 Spaces Moved 775 | 34 285 456 Core 105 | 16 . 89 Treads . | . . . Legs 285 | . . 285 Wheels 385 | 18 285 82 Hover . | . . . Flight . | . . . Fastest Speed 50 | 50 90 80 Average Speed 101 | 71 91 110 Slowest Speed 120 | 90 100 120 Overloaded Moves . | . . . Propulsion Burnouts . | . . . Robots Hopped . | . . . Cave-ins Triggered . | . . . Exploration Rate (%) 42 | 3 51 74 Regions Visited 2 Branch Regions 1 Pre-discovered Areas . | . . . Known Exits Taken 1 | . 1 . Unknown Exits Taken 1 | 1 . . Scrap Searched . | . . . Spaces Dug . | . . . Terrain Destroyed 2 | . . 2 Melee . | . . . Projectile 2 | . . 2 AOE . | . . . Actions | -11 -10 -10 --------- Run | Scr Mat Min Total 968 | 43 396 529 Wait 101 | . 75 26 Move 773 | 33 284 456 Hop . | . . . Pick Up 15 | 4 5 6 Fast Attach 2 | 2 . . Attach 14 | 4 2 8 Detach . | . . . Swap . | . . . Drop 2 | . . 2 Fire 61 | . 30 31 Melee . | . . . Ram . | . . . Kick . | . . . Crush . | . . . Escape Stasis . | . . . Rewire . | . . . Trap . | . . . Miscellaneous . | . . . Route ------- -11/Scrapyard -10/Materials (discovered 2 exits: *Mat / *Min) -10/Mines (discovered 2 exits: *Mat x2) History --------- Turn | Location | Event 8 | -11/Scrapyard | Discovered new exit (range 16) 36 | -11/Scrapyard | Entered Materials 41 | -10/Materials | Identified exit to Mines 316 | -10/Materials | Build established: Mutant 390 | -10/Materials | Discovered new exit (range 16) 463 | -10/Materials | Entered Mines 496 | -10/Mines | Met a Derelict bent on vengeance 498 | -10/Mines | Assembled infested the area 503 | -10/Mines | Assisted by a Guerilla fighting off Assembled 525 | -10/Mines | Identified exit to Materials 530 | -10/Mines | Learned Materials stockpile data 573 | -10/Mines | Core integrity fell below 50% 610 | -10/Mines | Lost 5 parts (1p2n2w) 876 | -10/Mines | Discovered exit to Materials (range 14) 1083 | -10/Mines | Core integrity fell below 20% 1088 | -10/Mines | Destroyed by Y-45 Defender with Beam Rifle Last Messages --------------- 00733_ Destroyed Asb. Hover Unit. 00734_ K-01 Serf collects debris. 00735_ as-83833 destroyed. 00738_ K-01 Serf collects debris. 00876_ EXIT=FOUND: MATERIALS 00915_ A pair of derelicts emerge from the shadows: "We're, um, lost. You wouldn't happen to know the way out of here, would you?" 00960_ S-10 Pest destroyed. 00970_ Acquired Carbon-fiber Leg. 00972_ Dropped Aluminum Leg. 00974_ Acquired 10 matter. 00976_ Dropped Lgt. Nuclear Core. 00977_ Acquired Lgt. Angular Momentum Engine. 00980_ K-01 Serf collects debris. 00981_ Acquired Carbon-fiber Leg. 00987_ Acquired 20 matter. 00992_ Acquired Lgt. Assault Rifle. 00993_ K-01 Serf collects debris. 00994_ Acquired 10 matter. 00997_ K-01 Serf collects debris. Map ----- +----------------------------------------------------+ | ?????## #### #?####### | | ?????# #??## #?# ### | | ?????# #???## #?# ##??# | | ?????# ##???## #?# ##########???? | | ?????# ##???## #?# #?????????????? | | ?????# #????# ### #?????????????? | | ????## ###### ## #?????????????? | | ????# # ##????????????? | | ????# ## #######??????? | | ????## #####=### #??????? | | ?????## #???#!#?## ###### #??????? | | ??????####???#%#??# ##????# #??????? | | ?????????????# ##?## ##?????# #??????? | | ????????????## *##?####??????# #??????? | | ???????????## #???????????# ######## | | ??????????## #???????????# | | ??????????# = =#???????????########## | | ??????????# *##????????????????????? | | ??????????## *%##????????????????????? | | ???????????### ###??????????????????? | | ?????????????## ##?????????????????? | | ?????????###?###z ##????????????????? | | ????????##!!## #????????????????? | | ????????#"!! # #????????????????? | | ????????# Y / #### ""???????? | | ????????#Y /@ ""???????? | | ????????#"[! # ## ### ""???????? | | ????????##!??# #? #?????? ??????? | | ????????????# ##??#???????????????? | | ????????????## ##???????????????????? | | ?????????????#####????????????????????? | | ?????????????????????????????#####??### | | ????????????????????????????## ### | | ????????????????????????????# ! | | ????????????????????????????# ! | | ?????????????????????????????# ! | | ??????????????????????????????# % !! | | ??????????????????????????????##" %* | | ???????????????????